fUST/lending_fUST_20250511
["ID","MTS","AMOUNT","RATE_DAILY","PERIOD"]
[360726819,1746955832492,-400.0,8.024e-05,2]
[360726820,1746955832502,-400.0,8.024e-05,2]
[360726821,1746955832511,-400.0,8.024e-05,2]
[360726822,1746955832522,-400.0,8.024e-05,2]
[360726823,1746955832532,-539.19,8.024e-05,2]
[360726824,1746955832541,-502.43,8.024e-05,2]
[360726825,1746955832550,-400.0,8.024e-05,2]
[360726826,1746955832559,-400.0,8.024e-05,2]
[360726827,1746955832568,-400.0,8.024e-05,2]
[360726828,1746955832576,-400.0,8.024e-05,2]
[360726829,1746955832586,-400.0,8.024e-05,2]
[360726830,1746955832596,-250.51,8.024e-05,2]
[360726831,1746955832606,-400.0,8.024e-05,2]
[360726832,1746955832616,-424.43,8.024e-05,2]
[360726833,1746955832625,-400.0,8.024e-05,2]
[360726834,1746955832635,-530.53,8.024e-05,2]
[360726835,1746955832644,-400.0,8.024e-05,2]
[360726836,1746955832654,-400.36,8.024e-05,2]
[360726837,1746955832664,-400.0,8.024e-05,2]
[360726838,1746955832673,-400.0,8.024e-05,2]
[360726839,1746955832682,-404.57,8.024e-05,2]
[360726840,1746955832691,-443.93,8.024e-05,2]
[360726841,1746955832701,-400.0,8.024e-05,2]
[360726842,1746955832710,-400.0,8.024e-05,2]
[360726843,1746955832719,-400.0,8.024e-05,2]
[360726844,1746955832731,-400.0,8.024e-05,2]
[360726845,1746955832741,-454.51,8.024e-05,2]
[360726846,1746955832751,-400.0,8.024e-05,2]
[360726847,1746955832761,-400.0,8.024e-05,2]
[360726848,1746955832770,-400.0,8.024e-05,2]
[360726849,1746955832779,-799.77,8.024e-05,2]
[360726850,1746955832789,-400.0,8.024e-05,2]
[360726851,1746955832798,-400.0,8.024e-05,2]
[360726852,1746955832808,-400.0,8.024e-05,2]
[360726853,1746955832817,-400.0,8.024e-05,2]
[360726854,1746955832827,-330.4,8.024e-05,2]
[360726855,1746955832836,-400.0,8.024e-05,2]
[360726856,1746955832845,-400.0,8.024e-05,2]
[360726857,1746955832857,-400.0,8.024e-05,2]
[360726858,1746955832866,-400.0,8.024e-05,2]
[360726859,1746955832875,-431.99,8.024e-05,2]
[360726860,1746955832884,-400.0,8.024e-05,2]
[360726861,1746955832894,-425.01,8.024e-05,2]
[360726862,1746955832903,-580.42,8.024e-05,2]
[360726863,1746955832913,-400.0,8.024e-05,2]
[360726864,1746955832922,-660.71,8.024e-05,2]
[360726865,1746955833089,-400.0,8.024e-05,2]
[360726866,1746955833099,-400.0,8.024e-05,2]
[360726867,1746955833108,-1937.56,8.024e-05,2]
[360726868,1746955833117,-185.74,8.024e-05,2]
[360726869,1746955833127,-400.0,8.024e-05,2]
[360726870,1746955833136,-400.0,8.024e-05,2]
[360726871,1746955833145,-1513.32,8.024e-05,2]
[360726872,1746955833154,-400.0,8.024e-05,2]
[360726873,1746955833163,-400.0,8.024e-05,2]
[360726874,1746955833172,-557.27,8.024e-05,2]
[360726875,1746955833182,-400.0,8.024e-05,2]
[360726876,1746955833191,-400.0,8.024e-05,2]
[360726877,1746955833201,-400.0,8.024e-05,2]
[360726878,1746955833211,-400.0,8.024e-05,2]
[360726879,1746955833220,-400.0,8.024e-05,2]
[360726880,1746955833230,-400.0,8.024e-05,2]
[360726881,1746955833239,-400.0,8.024e-05,2]
[360726882,1746955833250,-295.42,8.025e-05,2]
[360726883,1746955833259,-400.0,8.025e-05,2]
[360726884,1746955833268,-400.0,8.025e-05,2]
[360726885,1746955833278,-400.0,8.025e-05,2]
[360726886,1746955833287,-400.0,8.025e-05,2]
[360726887,1746955833296,-400.0,8.025e-05,2]
[360726888,1746955833305,-400.0,8.025e-05,2]
[360726889,1746955833314,-300.19,8.025e-05,2]
[360726890,1746955833323,-405.01536915,8.025e-05,2]
[360726891,1746955833335,-405.10027131,8.025e-05,2]
[360726892,1746955833344,-400.0,8.025e-05,2]
[360726893,1746955833353,-400.0,8.025e-05,2]
[360726894,1746955833362,-400.0,8.025e-05,2]
[360726895,1746955833373,-916.24,8.025e-05,2]
[360726896,1746955833382,-400.0,8.025e-05,2]
[360726897,1746955833392,-400.0,8.025e-05,2]
[360726898,1746955833401,-400.0,8.025e-05,2]
[360726899,1746955833412,-266.17632176,8.025e-05,2]
[360726900,1746955833422,-857.45,8.025e-05,2]
[360726901,1746955833431,-419.55813499,8.025e-05,2]
[360726902,1746955833441,-400.0,8.025e-05,2]
[360726903,1746955833450,-162.92671844,8.025e-05,2]
[360726904,1746955833459,-400.0,8.025e-05,2]
[360726905,1746955833468,-400.0,8.025e-05,2]
[360726906,1746955833477,-250.15564838,8.025e-05,2]
[360726908,1746955833487,-402.37117187,8.025e-05,2]
[360726909,1746955833496,-400.0,8.025e-05,2]
[360726910,1746955833506,-401.99827851,8.025e-05,2]
[360726911,1746955833516,-401.28586593,8.025e-05,2]
[360726912,1746955833526,-400.0,8.025e-05,2]
[360726913,1746955833536,-400.0,8.025e-05,2]
[360726914,1746955833545,-400.0,8.025e-05,2]
[360726915,1746955833555,-400.0,8.025e-05,2]
[360726916,1746955833565,-405.84089486,8.025e-05,2]
[360726917,1746955833574,-400.0,8.025e-05,2]
[360726918,1746955833583,-400.0,8.025e-05,2]
[360726919,1746955833593,-400.0,8.025e-05,2]
[360726920,1746955833603,-401.57688395,8.025e-05,2]
[360726921,1746955833612,-400.0,8.025e-05,2]
[360726922,1746955833621,-403.74484024,8.025e-05,2]
[360726923,1746955833630,-407.95320631,8.025e-05,2]
[360726924,1746955833641,-400.0,8.025e-05,2]
[360726925,1746955833651,-400.83117816,8.025e-05,2]
[360726926,1746955833661,-400.0,8.025e-05,2]
[360726927,1746955833672,-400.0,8.025e-05,2]
[360726928,1746955833682,-424.66867487,8.025e-05,2]
[360726929,1746955833693,-400.0,8.025e-05,2]
[360726930,1746955833707,-480.49,8.025e-05,2]
[360726931,1746955833717,-418.82447974,8.025e-05,2]
[360726932,1746955833727,-400.0,8.025e-05,2]
[360726934,1746955833737,-400.0,8.025e-05,2]
[360726935,1746955833748,-402.6681102,8.025e-05,2]
[360726936,1746955833759,-400.0,8.025e-05,2]
[360726937,1746955833770,-400.0,8.025e-05,2]
[360726938,1746955833779,-400.0,8.025e-05,2]
[360726939,1746955833789,-404.45917294,8.025e-05,2]
[360726940,1746955833799,-401.40299462,8.025e-05,2]
[360726941,1746955833808,-400.0,8.025e-05,2]
[360726942,1746955833818,-401.3124816,8.025e-05,2]
[360726943,1746955833827,-400.0,8.025e-05,2]
[360726944,1746955833837,-400.0,8.025e-05,2]
[360726945,1746955833846,-240.89833585,8.025e-05,2]
[360726946,1746955833856,-401.11854836,8.025e-05,2]
[360726947,1746955833865,-541.79658507,8.025e-05,2]
[360726948,1746955833875,-400.0,8.025e-05,2]
[360726949,1746955833885,-400.0,8.025e-05,2]
[360726950,1746955833894,-400.0,8.025e-05,2]
[360726951,1746955833903,-400.0,8.025e-05,2]
[360726952,1746955833912,-402.40065907,8.025e-05,2]
[360726953,1746955833921,-405.47,8.025e-05,2]
[360726954,1746955833931,-400.0,8.025e-05,2]
[360726955,1746955833940,-404.13905563,8.025e-05,2]
[360726956,1746955833951,-400.0,8.025e-05,2]
[360726957,1746955833961,-401.8836398,8.025e-05,2]
[360726958,1746955833971,-406.3360659,8.025e-05,2]
[360726959,1746955833980,-405.30605926,8.025e-05,2]
[360726960,1746955833990,-402.63457576,8.025e-05,2]
[360726961,1746955834000,-400.0,8.025e-05,2]
[360726962,1746955834009,-400.0,8.025e-05,2]
[360726963,1746955834018,-400.0,8.025e-05,2]
[360726964,1746955834027,-400.0,8.025e-05,2]
[360726965,1746955834037,-462.53,8.025e-05,2]
[360726966,1746955834046,-400.0,8.025e-05,2]
[360726967,1746955834056,-406.95799776,8.025e-05,2]
[360726968,1746955834065,-401.73116119,8.025e-05,2]
[360726969,1746955834075,-400.0,8.025e-05,2]
[360726970,1746955834084,-400.0,8.025e-05,2]
[360726971,1746955834093,-400.0,8.025e-05,2]
[360726972,1746955834103,-400.0,8.025e-05,2]
[360726973,1746955834112,-400.0,8.025e-05,2]
[360726974,1746955834122,-400.0,8.025e-05,2]
[360726975,1746955834131,-400.0,8.025e-05,2]
[360726976,1746955834141,-401.04798706,8.025e-05,2]
[360726977,1746955834150,-400.0,8.025e-05,2]
[360726978,1746955834160,-400.0,8.025e-05,2]
[360726979,1746955834170,-401.27138663,8.025e-05,2]
[360726980,1746955834180,-400.0,8.025e-05,2]
[360726981,1746955834189,-400.0,8.025e-05,2]
[360726982,1746955834201,-400.0,8.025e-05,2]
[360726983,1746955834211,-400.0,8.025e-05,2]
[360726984,1746955834220,-400.0,8.025e-05,2]
[360726985,1746955834230,-400.0,8.025e-05,2]
[360726986,1746955834239,-400.0,8.025e-05,2]
[360726987,1746955834249,-401.58708491,8.025e-05,2]
[360726988,1746955834258,-400.0,8.025e-05,2]
[360726989,1746955834268,-400.0,8.025e-05,2]
[360726990,1746955834277,-404.285651,8.025e-05,2]
[360726991,1746955834286,-400.0,8.025e-05,2]
[360726992,1746955834295,-400.0,8.025e-05,2]
[360726993,1746955834304,-400.0,8.025e-05,2]
[360726994,1746955834314,-400.0,8.025e-05,2]
[360726996,1746955834324,-400.0,8.025e-05,2]
[360726997,1746955834335,-400.0,8.025e-05,2]
[360726998,1746955834345,-400.0,8.025e-05,2]
[360726999,1746955834355,-400.0,8.025e-05,2]
[360727000,1746955834364,-438.65467832,8.025e-05,2]
[360727001,1746955834375,-400.0,8.025e-05,2]
[360727002,1746955834384,-405.78224636,8.025e-05,2]
[360727003,1746955834394,-371.1225677,8.025e-05,2]
[360727004,1746955834403,-400.0,8.025e-05,2]
[360727005,1746955834412,-400.0,8.025e-05,2]
[360727006,1746955834422,-408.9826584,8.025e-05,2]
[360727007,1746955834431,-331.71310207,8.025e-05,2]
[360727008,1746955834440,-517.07,8.025e-05,2]
[360727009,1746955834451,-403.73457987,8.025e-05,2]
[360727010,1746955834460,-405.83890612,8.025e-05,2]
[360727011,1746955834470,-404.77437079,8.025e-05,2]
[360727012,1746955834479,-405.08238898,8.025e-05,2]
[360727013,1746955834488,-400.0,8.025e-05,2]
[360727014,1746955834498,-402.90964894,8.025e-05,2]
[360727015,1746955834507,-400.0,8.025e-05,2]
[360727016,1746955834516,-404.89767389,8.025e-05,2]
[360727017,1746955834525,-425.65,8.025e-05,2]
[360727018,1746955834534,-404.82789406,8.025e-05,2]
[360727019,1746955834543,-400.0,8.025e-05,2]
[360727020,1746955834552,-408.65918662,8.025e-05,2]
[360727021,1746955834562,-400.0,8.025e-05,2]
[360727022,1746955834571,-400.0,8.025e-05,2]
[360727023,1746955834580,-405.81147685,8.025e-05,2]
[360727025,1746955834590,-400.0,8.025e-05,2]
[360727026,1746955834599,-403.01196117,8.025e-05,2]
[360727027,1746955834608,-406.39293704,8.025e-05,2]
[360727028,1746955834618,-400.0,8.025e-05,2]
[360727029,1746955834627,-400.0,8.025e-05,2]
[360727030,1746955834637,-454.18,8.025e-05,2]
[360727031,1746955834646,-400.0,8.025e-05,2]
[360727032,1746955834655,-400.0,8.025e-05,2]
[360727033,1746955834664,-400.0,8.025e-05,2]
[360727034,1746955834674,-401.99849221,8.025e-05,2]
[360727035,1746955834683,-400.0,8.025e-05,2]
[360727036,1746955834692,-400.0,8.025e-05,2]
[360727037,1746955834702,-400.0,8.025e-05,2]
[360727038,1746955834711,-405.84224553,8.025e-05,2]
[360727039,1746955834720,-233.74,8.027e-05,2]
[360727040,1746955834730,-400.0,8.027e-05,2]
[360727041,1746955834738,-182.557,8.027e-05,2]
[360727042,1746955834750,-500.0222889,8.027e-05,2]
[360727043,1746955834759,-304.0,8.03e-05,2]
[360727044,1746955834768,-245.88758902,8.065e-05,2]
[360727045,1746955834777,-2239.0,8.065e-05,2]
[360727046,1746955834786,-150.052,8.07e-05,2]
[360727047,1746955834795,-150.064,8.07e-05,2]
[360727048,1746955834804,-772535.92134456,8.07e-05,2]
[360727049,1746955834813,-87601.14291637,8.07e-05,2]
[360727051,1746955834828,-45991.07892092,8.07e-05,2]
[360727095,1746955838259,-404.0,8.065e-05,2]
[360727096,1746955838269,-1771.84748899,8.07e-05,2]
[360727172,1746955840751,-596.80266388,8.022e-05,2]
[360727175,1746955840761,-74407.34733601,8.07e-05,2]
[360727418,1746955843242,-508.43,8.024e-05,2]
[360727420,1746955843252,-400.0,8.024e-05,2]
[360727422,1746955843261,-135.65379695,8.07e-05,2]
[360728792,1746956399650,151.952099,0.0002169,30]
[360728793,1746956400360,151.952099,0.00021658,30]
[360728794,1746956400674,151.952099,0.00021625,30]
[360728796,1746956552379,500.0,8.019e-05,2]
[360728800,1746956704049,300.0,8.02e-05,2]
[360728803,1746956723247,205.0,8.02e-05,2]
[360728805,1746956763071,300.0,8.02e-05,2]
[360728806,1746956822713,300.0,8.02e-05,2]
[360728810,1746956883116,300.0,8.02e-05,2]
[360728816,1746956937725,404.14,8.02e-05,2]
[360728952,1746956942486,151.9521,0.0002169,30]
[360728988,1746956942852,151.9521,0.00021658,30]
[360729207,1746956947215,400.0,8.02e-05,2]
[360729234,1746956947969,400.0,8.02e-05,2]
[360729358,1746956951609,770.17,8.02e-05,2]
[360730362,1746956972026,1406.5,8.02e-05,2]
[360730363,1746956987073,400.0,8.02e-05,2]
[360730367,1746956994857,1183.41,8.02e-05,2]
[360730368,1746956998156,400.0,8.02e-05,2]
[360730369,1746957008305,1200.0,8.02e-05,2]
[360730370,1746957013131,514.29,8.02e-05,2]
[360730371,1746957013168,400.0,8.02e-05,2]
[360730372,1746957017381,400.0,8.02e-05,2]
[360730373,1746957017589,194.3686084,0.00022,120]
[360730374,1746957028221,434.8163169,8.02e-05,2]
[360730416,1746957032737,-486.82255798,8.02e-05,2]
[360730418,1746957032747,-400.0,8.021e-05,2]
[360730420,1746957032758,-414.07431834,8.021e-05,2]
[360730422,1746957032768,-400.0,8.021e-05,2]
[360730423,1746957032778,-425.43,8.021e-05,2]
[360730424,1746957032788,-400.0,8.021e-05,2]
[360730425,1746957032798,-400.0,8.021e-05,2]
[360730426,1746957032807,-416.25412318,8.021e-05,2]
[360730427,1746957032817,-435.57,8.021e-05,2]
[360730428,1746957032827,-766.44,8.021e-05,2]
[360730429,1746957032836,-400.0,8.021e-05,2]
[360730430,1746957032846,-400.0,8.021e-05,2]
[360730431,1746957032855,-400.0,8.021e-05,2]
[360730432,1746957032864,-400.0,8.021e-05,2]
[360730433,1746957032873,-414.0,8.021e-05,2]
[360730434,1746957032883,-400.0,8.021e-05,2]
[360730435,1746957032892,-407.3,8.021e-05,2]
[360730436,1746957032902,-497.01,8.021e-05,2]
[360730437,1746957032911,-400.0,8.021e-05,2]
[360730438,1746957032921,-400.0,8.021e-05,2]
[360730440,1746957032931,-400.0,8.021e-05,2]
[360730441,1746957032940,-400.0,8.021e-05,2]
[360730443,1746957032950,-400.0,8.021e-05,2]
[360730445,1746957032959,-400.0,8.021e-05,2]
[360730447,1746957032969,-16389.56565527,8.021e-05,2]
[360730449,1746957032979,-400.0,8.022e-05,2]
[360730451,1746957032988,-400.0,8.022e-05,2]
[360730453,1746957032997,-400.0,8.022e-05,2]
[360730455,1746957033007,-400.0,8.022e-05,2]
[360730457,1746957033016,-400.0,8.022e-05,2]
[360730459,1746957033026,-400.0,8.022e-05,2]
[360730461,1746957033037,-400.0,8.022e-05,2]
[360730463,1746957033047,-400.0,8.022e-05,2]
[360730465,1746957033056,-400.0,8.022e-05,2]
[360730467,1746957033065,-400.0,8.022e-05,2]
[360730469,1746957033075,-400.0,8.022e-05,2]
[360730472,1746957033084,-400.0,8.022e-05,2]
[360730474,1746957033094,-400.0,8.022e-05,2]
[360730476,1746957033103,-165.14,8.022e-05,2]
[360730477,1746957033113,-400.0,8.022e-05,2]
[360730479,1746957033123,-481.5,8.022e-05,2]
[360730481,1746957033133,-400.0,8.022e-05,2]
[360730483,1746957033142,-400.0,8.022e-05,2]
[360730485,1746957033152,-400.0,8.022e-05,2]
[360730487,1746957033162,-400.0,8.022e-05,2]
[360730490,1746957033172,-406.75,8.022e-05,2]
[360730492,1746957033181,-400.0,8.022e-05,2]
[360730494,1746957033190,-400.0,8.022e-05,2]
[360730496,1746957033200,-400.0,8.022e-05,2]
[360730498,1746957033209,-400.0,8.022e-05,2]
[360730500,1746957033220,-487.24,8.022e-05,2]
[360730502,1746957033231,-400.0,8.022e-05,2]
[360730504,1746957033242,-400.0,8.022e-05,2]
[360730506,1746957033252,-400.0,8.022e-05,2]
[360730508,1746957033261,-400.0,8.022e-05,2]
[360730510,1746957033275,-400.0,8.022e-05,2]
[360730512,1746957033285,-400.0,8.022e-05,2]
[360730514,1746957033295,-400.0,8.022e-05,2]
[360730516,1746957033304,-400.0,8.022e-05,2]
[360730518,1746957033315,-400.0,8.022e-05,2]
[360730520,1746957033324,-400.0,8.022e-05,2]
[360730522,1746957033334,-400.0,8.022e-05,2]
[360730524,1746957033343,-400.0,8.022e-05,2]
[360730526,1746957033353,-556.24,8.022e-05,2]
[360730528,1746957033363,-400.0,8.022e-05,2]
[360730530,1746957033373,-400.0,8.022e-05,2]
[360730533,1746957033383,-1856.82,8.022e-05,2]
[360730535,1746957033392,-400.0,8.022e-05,2]
[360730536,1746957033401,-400.0,8.022e-05,2]
[360730539,1746957033411,-545.0533834,8.022e-05,2]
[360730541,1746957033421,-400.0,8.022e-05,2]
[360730543,1746957033430,-1208.55,8.022e-05,2]
[360730545,1746957033441,-534.16257207,8.022e-05,2]
[360730547,1746957033451,-400.0,8.022e-05,2]
[360730548,1746957033460,-291.32,8.022e-05,2]
[360730551,1746957033470,-400.0,8.022e-05,2]
[360730553,1746957033481,-400.0,8.022e-05,2]
[360730555,1746957033491,-878.06,8.022e-05,2]
[360730556,1746957033501,-400.0,8.022e-05,2]
[360730558,1746957033511,-400.0,8.023e-05,2]
[360730561,1746957033521,-400.0,8.023e-05,2]
[360730563,1746957033531,-400.0,8.023e-05,2]
[360730565,1746957033541,-400.0,8.023e-05,2]
[360730566,1746957033551,-400.0,8.023e-05,2]
[360730569,1746957033561,-403.30787388,8.023e-05,2]
[360730570,1746957033571,-385.55026637,8.023e-05,2]
[360730572,1746957033581,-404.15913522,8.023e-05,2]
[360730575,1746957033591,-400.0,8.023e-05,2]
[360730594,1746957033779,-400.995525,8.023e-05,2]
[360730596,1746957033790,-400.0,8.023e-05,2]
[360730598,1746957033801,-224.93138951,8.023e-05,2]
[360730600,1746957033812,-402.46305726,8.023e-05,2]
[360730602,1746957033822,-470.65,8.023e-05,2]
[360730604,1746957033831,-400.0,8.023e-05,2]
[360730606,1746957033841,-400.0,8.023e-05,2]
[360730608,1746957033850,-400.0,8.023e-05,2]
[360730610,1746957033860,-400.0,8.023e-05,2]
[360730612,1746957033870,-400.0,8.023e-05,2]
[360730614,1746957033880,-400.0,8.023e-05,2]
[360730616,1746957033890,-400.0,8.023e-05,2]
[360730618,1746957033900,-400.0,8.023e-05,2]
[360730620,1746957033909,-492.70853038,8.023e-05,2]
[360730622,1746957033919,-173.57,8.023e-05,2]
[360730624,1746957033929,-400.0,8.023e-05,2]
[360730625,1746957033939,-280.97091796,8.023e-05,2]
[360730627,1746957033948,-400.0,8.023e-05,2]
[360730628,1746957033959,-821.72,8.023e-05,2]
[360730630,1746957033969,-400.0,8.023e-05,2]
[360730632,1746957033979,-222.62,8.023e-05,2]
[360730633,1746957033989,-400.0,8.023e-05,2]
[360730634,1746957033999,-400.0,8.023e-05,2]
[360730635,1746957034008,-400.0,8.023e-05,2]
[360730636,1746957034017,-400.0,8.023e-05,2]
[360730637,1746957034027,-400.0,8.023e-05,2]
[360730638,1746957034037,-400.0,8.023e-05,2]
[360730639,1746957034047,-400.0,8.023e-05,2]
[360730640,1746957034057,-400.0,8.023e-05,2]
[360730641,1746957034067,-400.0,8.023e-05,2]
[360730642,1746957034077,-400.0,8.023e-05,2]
[360730643,1746957034087,-400.0,8.023e-05,2]
[360730644,1746957034097,-443.26,8.023e-05,2]
[360730645,1746957034107,-400.0,8.023e-05,2]
[360730646,1746957034117,-400.0,8.023e-05,2]
[360730647,1746957034127,-400.0,8.023e-05,2]
[360730648,1746957034136,-400.0,8.023e-05,2]
[360730649,1746957034145,-400.0,8.023e-05,2]
[360730650,1746957034155,-225.73,8.023e-05,2]
[360730651,1746957034164,-400.0,8.023e-05,2]
[360730652,1746957034174,-404.0,8.065e-05,2]
[360730653,1746957034184,-401.85658622,8.069e-05,2]
[360730654,1746957034195,-406.32559734,8.07e-05,2]
[360730807,1746957040468,400.0,8.02e-05,2]
[360731338,1746957046437,-400.0,8.021e-05,2]
[360731340,1746957046448,-787.48,8.022e-05,2]
[360731342,1746957046460,-40998.70822708,8.07e-05,2]
[360731477,1746957070296,400.0,8.02e-05,2]
[360731478,1746957077307,400.0,8.02e-05,2]
[360731479,1746957084190,400.0,8.02e-05,2]
[360731480,1746957092011,407.7,8.02e-05,2]
[360731481,1746957095806,400.0,8.02e-05,2]
[360731482,1746957110969,500.0,8.019e-05,2]
[360731483,1746957111005,342.69775501,8.019e-05,2]
[360731484,1746957111041,500.0,8.019e-05,2]
[360731485,1746957113368,417.42,8.02e-05,2]
[360731678,1746957120356,400.0,8.02e-05,2]
[360731784,1746957122972,300.0,8.02e-05,2]
[360731809,1746957123681,734.51,8.02e-05,2]
[360731862,1746957124981,400.0,8.02e-05,2]
[360732143,1746957132751,399.71,8.02e-05,2]
[360732365,1746957138664,400.0,8.02e-05,2]
[360732425,1746957140187,400.0,8.02e-05,2]
[360733048,1746957156957,500.0,8.019e-05,2]
[360733057,1746957157161,500.0,8.019e-05,2]
[360733060,1746957157214,319.76479916,8.019e-05,2]
[360733064,1746957157300,500.0,8.019e-05,2]
[360733067,1746957157345,500.0,8.019e-05,2]
[360733070,1746957157380,500.0,8.019e-05,2]
[360733072,1746957157415,500.0,8.019e-05,2]
[360733074,1746957157452,500.0,8.019e-05,2]
[360733077,1746957157487,500.0,8.019e-05,2]
[360733080,1746957157544,500.0,8.019e-05,2]
[360733082,1746957157582,500.0,8.019e-05,2]
[360733085,1746957157622,500.0,8.019e-05,2]
[360733104,1746957158250,400.0,8.02e-05,2]
[360733401,1746957166362,400.0,8.02e-05,2]
[360733603,1746957174561,476.31,8.02e-05,2]
[360733844,1746957186252,400.0,8.02e-05,2]
[360734192,1746957202200,400.0,8.02e-05,2]
[360734290,1746957205347,400.0,8.02e-05,2]
[360734434,1746957209985,400.0,8.02e-05,2]
[360734885,1746957224801,400.0,8.02e-05,2]
[360735047,1746957230592,400.0,8.02e-05,2]
[360735084,1746957231837,400.0,8.02e-05,2]
[360735216,1746957237036,400.0,8.02e-05,2]
[360735277,1746957240193,400.0,8.02e-05,2]
[360735652,1746957264359,400.0,8.02e-05,2]
[360735653,1746957271046,380.4176155,8.02e-05,2]
[360735654,1746957272475,400.0,8.02e-05,2]
[360735655,1746957272797,466.94,8.02e-05,2]
[360735656,1746957274926,439.44817728,8.02e-05,2]
[360735657,1746957286154,400.0,8.02e-05,2]
[360735658,1746957292379,400.0,8.02e-05,2]
[360735659,1746957292933,400.0,8.02e-05,2]
[360735660,1746957293020,400.0,8.02e-05,2]
[360735661,1746957299443,400.0,8.02e-05,2]
[360735662,1746957299563,400.0,8.02e-05,2]
[360735663,1746957300889,400.0,8.02e-05,2]
[360735664,1746957303216,400.0,8.02e-05,2]
[360735665,1746957308902,400.0,8.02e-05,2]
[360735666,1746957309346,1200.0,8.02e-05,2]
[360735667,1746957317447,240.93,8.02e-05,2]
[360735668,1746957323733,400.0,8.02e-05,2]
[360735669,1746957328956,400.0,8.02e-05,2]
[360735670,1746957328995,461.43,8.02e-05,2]
[360735671,1746957340022,400.0,8.02e-05,2]
[360735672,1746957342676,400.0,8.02e-05,2]
[360735673,1746957352545,400.0,8.02e-05,2]
[360735674,1746957353850,-500.0,8.02e-05,2]
[360735675,1746957353878,-500.0,8.02e-05,2]
[360735676,1746957353905,-202.19608879,8.02e-05,2]
[360735677,1746957353931,-255.30947134,8.02e-05,2]
[360735678,1746957353956,-400.0,8.021e-05,2]
[360735679,1746957353982,-400.0,8.021e-05,2]
[360735680,1746957354008,-150.36,8.021e-05,2]
[360735681,1746957354045,-400.0,8.021e-05,2]
[360735682,1746957354073,-616.51,8.021e-05,2]
[360735683,1746957354100,-400.0,8.021e-05,2]
[360735684,1746957354129,-533.06,8.021e-05,2]
[360735685,1746957354155,-400.0,8.021e-05,2]
[360735686,1746957354179,-400.0,8.021e-05,2]
[360735687,1746957354205,-400.0,8.021e-05,2]
[360735688,1746957354232,-400.0,8.021e-05,2]
[360735689,1746957354260,-1779.46,8.021e-05,2]
[360735690,1746957354285,-243.39267065,8.021e-05,2]
[360735691,1746957354310,-400.0,8.021e-05,2]
[360735692,1746957354338,-1399.91,8.021e-05,2]
[360735693,1746957354366,-400.0,8.021e-05,2]
[360735694,1746957354393,-400.0,8.021e-05,2]
[360735695,1746957354622,-511.79,8.021e-05,2]
[360735696,1746957354649,-400.0,8.021e-05,2]
[360735697,1746957354677,-400.0,8.021e-05,2]
[360735698,1746957354703,-400.0,8.021e-05,2]
[360735699,1746957354728,-400.0,8.021e-05,2]
[360735700,1746957354752,-170.54,8.021e-05,2]
[360735701,1746957354777,-400.0,8.022e-05,2]
[360735702,1746957354802,-400.0,8.022e-05,2]
[360735703,1746957354828,-400.0,8.022e-05,2]
[360735704,1746957354853,-400.0,8.022e-05,2]
[360735705,1746957354878,-400.0,8.022e-05,2]
[360735706,1746957354902,-409.68130334,8.022e-05,2]
[360735707,1746957354926,-424.79,8.022e-05,2]
[360735708,1746957354950,-400.0,8.022e-05,2]
[360735709,1746957354975,-400.0,8.022e-05,2]
[360735710,1746957355000,-414.21702835,8.022e-05,2]
[360735711,1746957355028,-511.73,8.022e-05,2]
[360735712,1746957355055,-400.0,8.022e-05,2]
[360735713,1746957355081,-404.0,8.065e-05,2]
[360735714,1746957355107,-400.0,8.069e-05,2]
[360735715,1746957355133,-400.0,8.069e-05,2]
[360735716,1746957355160,-400.0,8.069e-05,2]